bitfinex/quotes_BTCUSD_20241205
["timestamp","ask_amount","ask_price","bid_price","bid_amount"]
[1733373433435,0.17201365,102650.0,102630.0,4.21268466]
[1733373433647,0.17201365,102650.0,102630.0,4.28088566]
[1733373433855,0.421492,102680.0,102640.0,0.26786905]
[1733373434137,0.63925805,102680.0,102650.0,0.068192]
[1733373435232,0.48401715,102680.0,102650.0,0.068192]
[1733373435509,0.67880815,102680.0,102650.0,0.068192]
[1733373435912,0.0395511,102680.0,102650.0,0.068192]
[1733373436123,0.3904079,102690.0,102660.0,0.19967605]
[1733373436343,0.194797,102680.0,102650.0,0.15]
[1733373436552,0.20496487,102670.0,102650.0,0.34967605]
[1733373436762,0.01016387,102670.0,102650.0,0.34967605]
[1733373437229,0.01016387,102670.0,102650.0,0.41786805]
[1733373437642,0.01016387,102670.0,102650.0,0.48606005]
[1733373437865,0.01016387,102670.0,102650.0,0.41786805]
[1733373439042,0.01016387,102670.0,102650.0,0.48606005]
[1733373439474,0.01016387,102670.0,102650.0,0.41786805]
[1733373439884,0.20496287,102670.0,102650.0,0.15]
[1733373440091,0.39977287,102670.0,102650.0,0.15]
[1733373440301,0.23138657,102670.0,102650.0,0.15]
[1733373440509,0.39977187,102670.0,102650.0,0.15]
[1733373440936,0.194817,102660.0,102650.0,0.15]
[1733373441150,0.389621,102670.0,102650.0,0.15]
[1733373441825,0.23531292,102670.0,102650.0,0.15]
[1733373442034,0.43012692,102670.0,102650.0,0.15]
[1733373442239,0.62494292,102670.0,102650.0,0.15]
[1733373442462,0.43012692,102670.0,102650.0,0.15]
[1733373443368,0.23531292,102670.0,102650.0,0.15]
[1733373443575,0.43012392,102670.0,102650.0,0.15]
[1733373444647,0.23531292,102670.0,102650.0,0.218192]
[1733373445268,0.26173662,102670.0,102650.0,0.218192]
[1733373445960,0.04050392,102670.0,102660.0,0.19967605]
[1733373446180,0.0008669,102680.0,102660.0,0.36186205]
[1733373446402,0.0008669,102680.0,102670.0,0.158439]
[1733373446649,0.0008669,102680.0,102670.0,0.25811505]
[1733373447999,0.73859001,102700.0,102670.0,0.25811205]
[1733373448226,0.1953514,102690.0,102670.0,0.25811205]
[1733373448445,0.0005894,102690.0,102670.0,0.31655105]
[1733373448927,0.0005894,102690.0,102670.0,0.37499005]
[1733373449424,0.0005894,102690.0,102670.0,0.37498705]
[1733373449902,0.0005894,102690.0,102670.0,0.31654805]
[1733373450313,0.0005894,102690.0,102670.0,0.31654705]
[1733373450538,0.0005894,102690.0,102680.0,0.058433]
[1733373450747,0.40833046,102700.0,102680.0,0.058433]
[1733373450978,0.21375312,102700.0,102680.0,0.058433]
[1733373451627,0.40850512,102700.0,102680.0,0.058433]
[1733373451860,0.21375312,102700.0,102680.0,0.058433]
[1733373452085,0.40850512,102700.0,102680.0,0.058433]
[1733373453698,0.21375312,102700.0,102680.0,0.058433]
[1733373453919,0.40850512,102700.0,102680.0,0.058433]
[1733373454755,0.0008669,102690.0,102680.0,0.058433]
[1733373455202,0.0008669,102690.0,102680.0,0.34163293]
[1733373455434,0.0008669,102690.0,102680.0,0.33990905]
[1733373455802,0.06139351,102720.0,102680.0,0.33990905]
[1733373456021,0.389401,102730.0,102690.0,0.26783605]
[1733373456226,0.194717,102720.0,102700.0,0.068159]
[1733373456859,0.389434,102720.0,102690.0,0.26783605]
[1733373457076,0.194723,102710.0,102690.0,0.33599705]
[1733373457897,0.389456,102710.0,102690.0,0.06816]
[1733373458114,0.584193,102710.0,102680.0,0.2187264]
[1733373458329,0.389456,102710.0,102680.0,0.41840245]
[1733373458565,0.389456,102710.0,102680.0,0.41840045]
[1733373458783,0.389456,102710.0,102690.0,0.068165]
[1733373458999,0.584192,102710.0,102680.0,0.48656945]
[1733373459235,0.584195,102710.0,102680.0,0.41840045]
[1733373459472,0.194744,102700.0,102680.0,0.16843245]
[1733373459693,0.194744,102700.0,102680.0,0.0005894]
[1733373459694,0.389488,102700.0,102680.0,0.0005894]
[1733373460441,0.584245,102700.0,102680.0,0.0005894]
[1733373460652,0.19476,102690.0,102680.0,0.0005894]
[1733373460889,0.51858775,102700.0,102680.0,0.0005894]
[1733373461090,0.2241837,102690.0,102680.0,0.0005894]
[1733373461517,0.39594265,102690.0,102680.0,0.0005894]
[1733373461665,0.32460787,102690.0,102680.0,0.0005894]
[1733373462670,0.40240787,102690.0,102680.0,0.0005894]
[1733373462874,0.40240787,102690.0,102650.0,0.0017338]
[1733373463070,0.389624,102670.0,102650.0,0.0017338]
[1733373463276,0.48930005,102670.0,102650.0,0.0017338]
[1733373463485,0.194817,102660.0,102650.0,0.0017338]
[1733373464618,0.194787,102680.0,102650.0,0.0017338]
[1733373464838,0.194787,102680.0,102660.0,0.068185]
[1733373465050,0.194787,102680.0,102650.0,0.40597585]
[1733373465255,0.194787,102680.0,102660.0,0.068185]
[1733373465467,0.00058929,102690.0,102660.0,0.19967605]
[1733373465678,0.00058929,102690.0,102670.0,0.33602405]
[1733373465913,0.01933829,102700.0,102670.0,0.33602405]
[1733373466120,0.53147537,102710.0,102680.0,0.0699054]
[1733373466332,0.43641442,102710.0,102680.0,0.0017334]
[1733373466548,0.194742,102700.0,102680.0,0.0017334]
[1733373466999,0.3903517,102700.0,102680.0,0.0017334]
[1733373468072,0.1956087,102700.0,102680.0,0.0699054]
[1733373468283,0.0008667,102700.0,102680.0,0.1380774]
[1733373468537,0.0008667,102700.0,102680.0,0.0699054]
[1733373468770,0.3903637,102700.0,102680.0,0.0017334]
[1733373469629,0.29443605,102690.0,102680.0,0.0017334]
[1733373469919,0.32460787,102690.0,102680.0,0.0017334]
[1733373470548,0.39927766,102690.0,102680.0,0.0017334]
[1733373470757,0.194779,102680.0,102670.0,0.00058929]
[1733373470936,1.59967605,102680.0,102670.0,0.00058929]
[1733373471186,0.32462687,102680.0,102670.0,0.00058929]
[1733373473488,0.44445505,102680.0,102670.0,0.00058929]
[1733373473923,0.194817,102660.0,102650.0,0.0017338]
[1733373474126,0.194817,102660.0,102650.0,0.00191046]
[1733373474546,0.36778,102680.0,102650.0,0.00191046]
[1733373474761,0.194817,102660.0,102650.0,0.00191046]
[1733373475851,0.018817,102660.0,102650.0,0.00191046]
[1733373476101,0.48930005,102670.0,102650.0,0.00191046]
[1733373476548,0.194817,102660.0,102650.0,0.00191046]
[1733373476966,0.68411205,102670.0,102650.0,0.00191046]
[1733373477840,0.194817,102660.0,102650.0,0.00191046]
[1733373478545,0.48929905,102670.0,102650.0,0.00191046]
[1733373478765,0.194817,102660.0,102650.0,0.00191046]
[1733373478985,0.194836,102650.0,102640.0,0.00169381]
[1733373479224,0.51776405,102650.0,102640.0,0.00187081]
[1733373479424,0.40320303,102650.0,102640.0,0.00187081]
[1733373480043,0.194855,102640.0,102630.0,3.75083061]
[1733373480262,0.194855,102640.0,102610.0,0.0477]
[1733373480263,0.19488,102630.0,102610.0,0.0477]
[1733373480470,1.5,102630.0,102610.0,0.1477]
[1733373480681,0.00017674,102650.0,102630.0,0.1]
[1733373480884,0.00017674,102650.0,102640.0,0.0477]
[1733373481300,1.50017674,102650.0,102640.0,0.0477]
[1733373481512,1.50017674,102650.0,102640.0,0.23506105]
[1733373481717,0.00017674,102650.0,102640.0,0.51726105]
[1733373481925,0.389577,102680.0,102650.0,0.087676]
[1733373482148,0.48925305,102680.0,102650.0,0.087676]
[1733373482361,0.52948155,102680.0,102650.0,0.087676]
[1733373482776,0.33469155,102680.0,102650.0,0.087676]
[1733373483198,0.52948155,102680.0,102640.0,0.69278779]
[1733373483415,0.33469155,102680.0,102650.0,0.087676]
[1733373483661,0.52948555,102680.0,102640.0,0.51742979]
[1733373483909,0.194804,102670.0,102640.0,0.51742979]
[1733373484533,0.194804,102670.0,102640.0,0.60510979]
[1733373484715,0.194804,102670.0,102650.0,5.0]
[1733373484988,0.52948455,102680.0,102650.0,5.0]
[1733373485212,0.72427755,102680.0,102650.0,5.0]
[1733373485653,0.52948455,102680.0,102650.0,5.0]
[1733373485884,0.33469755,102680.0,102650.0,5.0]
[1733373486085,0.52948855,102680.0,102650.0,5.097418]
[1733373486732,0.0402285,102680.0,102660.0,0.097402]
[1733373486946,0.0402285,102680.0,102670.0,0.0816]
[1733373487159,0.344744,102700.0,102670.0,0.226497]
[1733373487371,0.44442005,102700.0,102670.0,0.226497]
[1733373487583,0.63916205,102700.0,102670.0,0.226497]
[1733373487807,0.44441805,102700.0,102670.0,0.32389]
[1733373488029,0.15,102700.0,102670.0,0.42616905]
[1733373488247,0.344742,102700.0,102670.0,0.42616905]
[1733373488458,0.344742,102700.0,102670.0,0.52356205]
[1733373489341,0.38391535,102700.0,102670.0,0.52356205]
[1733373490247,0.38391535,102700.0,102670.0,0.62095505]
[1733373490726,0.19004035,102700.0,102680.0,0.194778]
[1733373490954,0.01404035,102700.0,102680.0,0.344778]
[1733373491194,0.000867,102700.0,102680.0,0.247389]
[1733373492121,0.00145713,102700.0,102680.0,0.247389]
[1733373492344,0.00145713,102700.0,102680.0,0.344778]
[1733373492773,0.00145713,102700.0,102690.0,0.47285605]
[1733373493036,0.00145713,102700.0,102690.0,0.51905605]
[1733373495772,0.00145713,102700.0,102690.0,0.48984205]
[1733373496009,0.20512738,102750.0,102710.0,0.068152]
[1733373496263,0.00017699,102740.0,102730.0,0.068139]
[1733373496532,0.00017699,102740.0,102720.0,0.281584]
[1733373497033,0.00017699,102740.0,102720.0,0.349726]
[1733373497286,0.00017699,102740.0,102720.0,0.281584]
[1733373497526,0.00017699,102740.0,102730.0,0.068139]
[1733373497763,0.00017699,102740.0,102720.0,0.38125905]
[1733373498449,0.00017699,102740.0,102720.0,0.44940105]
[1733373498654,0.00017699,102740.0,102730.0,0.068139]
[1733373498875,0.00017699,102740.0,102720.0,0.38125905]
[1733373499648,0.00017699,102740.0,102720.0,0.44940405]
[1733373500775,0.00017699,102740.0,102720.0,0.38125905]
[1733373500993,0.29613445,102760.0,102720.0,0.38125905]
[1733373501213,0.194647,102750.0,102720.0,0.38143604]
[1733373502115,0.194647,102750.0,102720.0,0.38316884]
[1733373502331,0.0008664,102740.0,102720.0,0.38316884]
[1733373502992,0.0008664,102740.0,102720.0,0.31502684]
[1733373503208,0.0008664,102740.0,102720.0,0.38317184]
[1733373503427,0.0008664,102740.0,102720.0,0.31502684]
[1733373503653,0.0008664,102740.0,102720.0,0.38317284]
[1733373505486,0.0008664,102740.0,102720.0,0.14720979]
[1733373505712,0.0008664,102740.0,102720.0,0.04720979]
[1733373506688,0.0008664,102740.0,102710.0,0.22267232]
[1733373506906,0.00104313,102740.0,102730.0,0.158405]
[1733373507142,0.00104313,102740.0,102730.0,0.31432814]
[1733373507374,0.00104313,102740.0,102730.0,0.31260537]
[1733373508304,0.45022403,102780.0,102740.0,0.15452432]
[1733373508523,0.55007687,102780.0,102740.0,0.31259937]
[1733373508739,0.74468287,102780.0,102740.0,0.25420037]
[1733373508957,0.54976656,102780.0,102740.0,0.25420037]
[1733373509426,1.5,102750.0,102740.0,0.25420037]
[1733373510867,0.54976656,102780.0,102740.0,0.15420037]
[1733373510868,0.35516456,102780.0,102740.0,0.15420037]
[1733373511086,0.29429505,102770.0,102740.0,0.05452432]
[1733373511303,0.48891605,102770.0,102740.0,0.05452432]
[1733373513191,0.29429505,102770.0,102740.0,0.05452432]
[1733373513421,0.09967605,102770.0,102740.0,0.05452432]
[1733373513640,0.29428605,102770.0,102740.0,0.05452432]
[1733373514090,0.29515475,102770.0,102740.0,0.05452432]
[1733373514336,0.10054375,102770.0,102740.0,0.05452432]
[1733373514556,0.29515375,102770.0,102730.0,0.47792432]
[1733373514778,0.48976375,102770.0,102740.0,0.25452432]
[1733373515669,0.48972375,102770.0,102740.0,0.25452432]
[1733373516624,0.10050375,102770.0,102740.0,0.25452432]
[1733373517273,0.29511375,102770.0,102740.0,0.25452432]
[1733373517490,0.29256489,102770.0,102740.0,0.25452432]
[1733373517716,0.0008677,102770.0,102740.0,0.39967605]
[1733373517935,0.00979827,102770.0,102740.0,0.45420037]
[1733373518398,0.00893057,102760.0,102740.0,0.45420037]
[1733373518612,0.01516348,102770.0,102740.0,0.39967605]
[1733373518823,0.01516348,102770.0,102740.0,0.45420037]
[1733373519510,0.00894219,102760.0,102740.0,0.45420037]
[1733373519954,0.00894219,102760.0,102740.0,0.25452432]
[1733373520390,0.20977248,102770.0,102740.0,0.25452432]
[1733373520609,0.20977248,102770.0,102740.0,0.45452432]
[1733373520879,0.00894647,102760.0,102740.0,0.45452432]
[1733373521087,0.20977248,102770.0,102740.0,0.45452432]
[1733373521315,0.00894528,102760.0,102740.0,0.45452432]
[1733373521528,0.01429578,102760.0,102740.0,0.45452432]
[1733373521773,0.3900987,102770.0,102740.0,0.4]
[1733373521989,0.194647,102750.0,102740.0,0.4]
[1733373522213,0.30864374,102750.0,102740.0,0.4]
[1733373522430,0.36062239,102750.0,102740.0,0.4]
[1733373523320,0.45425377,102750.0,102740.0,0.4]
[1733373523536,0.194666,102740.0,102730.0,0.2]
[1733373523769,0.30867297,102740.0,102730.0,0.2]
[1733373524880,0.01433092,102740.0,102730.0,0.20017673]
[1733373525123,0.09303092,102750.0,102730.0,0.20017673]
[1733373525342,0.00895875,102740.0,102730.0,0.20017673]
[1733373525598,0.01433092,102750.0,102730.0,0.19945088]
[1733373525815,0.00895978,102740.0,102730.0,0.19945088]
[1733373526025,0.01433092,102750.0,102730.0,0.19945088]
[1733373526257,0.00895978,102740.0,102730.0,0.19945088]
[1733373526487,0.01433092,102750.0,102730.0,0.19945088]
[1733373526697,0.00895973,102740.0,102730.0,0.19945088]
[1733373526960,0.01433092,102750.0,102730.0,0.19945088]
[1733373527200,0.00895958,102740.0,102730.0,0.19945088]
[1733373527416,0.01433092,102750.0,102730.0,0.19945088]
[1733373527637,0.00895961,102740.0,102730.0,0.19945088]
[1733373527888,0.21505131,102760.0,102730.0,0.19945088]
[1733373528100,0.00895963,102750.0,102730.0,0.19945088]
[1733373528335,0.00895963,102740.0,102730.0,0.19945088]
[1733373528609,0.63531697,102750.0,102730.0,0.19945088]
[1733373528836,0.00895915,102740.0,102730.0,0.19945088]
[1733373529044,0.81564605,102750.0,102730.0,0.19945088]
[1733373529272,0.20362504,102740.0,102730.0,0.19945088]
[1733373529486,0.39017373,102740.0,102730.0,0.18783755]
[1733373529701,0.39017373,102740.0,102730.0,0.00191153]
[1733373529914,1.694685,102730.0,102720.0,0.0017354]
[1733373530130,1.79436105,102730.0,102720.0,0.0017354]
[1733373530355,0.29436105,102730.0,102720.0,0.0017354]
[1733373533490,0.44436105,102730.0,102720.0,0.0017354]
[1733373533924,0.47849058,102730.0,102720.0,0.0017354]
[1733373534170,0.44436105,102730.0,102720.0,0.0017354]
[1733373535278,0.58986457,102730.0,102720.0,0.0017354]
[1733373535510,0.71634025,102730.0,102720.0,0.0017354]
[1733373535731,0.76484025,102730.0,102720.0,0.0017354]
[1733373535970,0.79037599,102730.0,102720.0,0.0017354]
[1733373536206,0.88829521,102730.0,102720.0,0.0017354]
[1733373537920,0.89844572,102730.0,102720.0,1e-08]
[1733373540112,0.61884452,102700.0,102690.0,0.0156]
[1733373540336,0.71852057,102700.0,102690.0,0.0156]
[1733373540565,0.344741,102700.0,102690.0,0.0156]
[1733373540782,0.15,102700.0,102690.0,0.0156]
[1733373540999,0.344741,102700.0,102690.0,0.0156]
[1733373541462,0.34491763,102700.0,102690.0,0.0156]
[1733373543236,0.44459368,102700.0,102690.0,0.0156]
[1733373543381,0.389582,102680.0,102660.0,0.15]
[1733373543607,0.194798,102670.0,102660.0,0.15]
[1733373543838,0.194798,102670.0,102650.0,4.96994065]
[1733373544258,0.48925605,102680.0,102650.0,4.96994065]
[1733373544580,0.4283257,102700.0,102650.0,4.96994065]
[1733373544581,0.34493563,102700.0,102650.0,5.22414102]
[1733373544739,0.09967605,102690.0,102660.0,0.1501]
[1733373544939,0.29443705,102690.0,102660.0,0.1501]
[1733373545574,0.48921405,102690.0,102660.0,0.1501]
[1733373545981,0.48921105,102690.0,102660.0,0.1501]
[1733373546199,0.29443705,102690.0,102660.0,0.1501]
[1733373546460,0.19478,102680.0,102660.0,0.023]
[1733373546670,0.389571,102680.0,102660.0,0.023]
[1733373546884,0.584368,102680.0,102660.0,0.023]
[1733373547102,0.19478,102680.0,102660.0,0.023]
[1733373547392,0.48921505,102690.0,102660.0,0.023]
[1733373547566,0.55315422,102690.0,102660.0,0.023]
[1733373547780,0.48921505,102690.0,102660.0,0.023]
[1733373547986,0.68398905,102690.0,102660.0,0.023]
[1733373548205,0.29444305,102690.0,102660.0,0.023]
[1733373548404,0.48921405,102690.0,102650.0,5.44153702]
[1733373548817,1.5,102660.0,102650.0,5.44153702]
[1733373550155,1.5,102660.0,102650.0,5.44212715]
[1733373551209,0.194724,102710.0,102680.0,0.0791]
[1733373551430,0.194756,102700.0,102670.0,0.23362432]
[1733373551644,1.5,102680.0,102670.0,0.33330037]
[1733373552294,0.389534,102690.0,102670.0,0.0791]
[1733373552507,0.2531903,102690.0,102670.0,0.0791]
[1733373552714,0.389504,102700.0,102670.0,0.0791]
[1733373553150,0.56524605,102710.0,102670.0,0.33330037]
[1733373553366,0.01015191,102690.0,102670.0,0.39173937]
[1733373555345,0.01015191,102690.0,102670.0,0.45017837]
[1733373555799,0.01015191,102690.0,102680.0,0.30182416]
[1733373556026,0.01015191,102690.0,102680.0,0.35853337]
[1733373556473,0.1955789,102720.0,102690.0,0.05452432]
[1733373556686,0.0101511,102700.0,102690.0,0.25420037]
[1733373557792,0.01032773,102700.0,102690.0,0.25420037]
[1733373561860,0.01032773,102700.0,102690.0,0.25593637]
[1733373562504,0.01032773,102700.0,102690.0,0.05626032]
[1733373562716,0.01119573,102700.0,102690.0,0.05626032]
[1733373563615,0.00130873,102700.0,102690.0,0.05626032]
[1733373564497,0.00130873,102700.0,102690.0,0.25765993]
[1733373564713,0.00130873,102700.0,102690.0,0.25593637]
[1733373566049,0.00130873,102700.0,102690.0,0.20141205]
[1733373566276,0.00130873,102700.0,102690.0,0.2576598]
[1733373566491,0.00130873,102700.0,102690.0,0.20141205]
[1733373566756,0.00130873,102700.0,102690.0,0.2576598]
[1733373566977,0.00130873,102700.0,102690.0,0.25593637]
[1733373567193,0.0341807,102700.0,102690.0,0.25593637]
[1733373567584,0.0341807,102700.0,102690.0,0.20141205]
[1733373567807,0.0341807,102700.0,102690.0,0.25765981]
[1733373568037,0.01618069,102700.0,102690.0,0.25593637]
[1733373568252,0.0101556,102700.0,102690.0,0.25593637]
[1733373570293,0.0101556,102700.0,102690.0,0.33413637]
[1733373570528,0.0101556,102700.0,102690.0,0.44066437]
[1733373570744,1.5,102710.0,102700.0,0.21294632]
[1733373570974,1.5,102710.0,102700.0,0.31434558]
[1733373571192,1.5,102710.0,102700.0,0.39082237]
[1733373572064,1.5,102710.0,102700.0,0.33240037]
[1733373574378,0.03429389,102720.0,102710.0,0.05452432]
[1733373574551,0.03429389,102720.0,102710.0,0.15420037]
[1733373576892,0.03429389,102720.0,102710.0,0.3799235]
[1733373577111,0.03429389,102720.0,102710.0,0.41714437]
[1733373577545,0.0008679,102720.0,102710.0,0.41714437]
[1733373578411,0.0008679,102720.0,102710.0,0.66714437]
[1733373582274,0.0008679,102720.0,102710.0,0.56714437]
[1733373582493,0.0008679,102720.0,102710.0,0.66714437]
[1733373583133,0.0008678,102740.0,102730.0,0.15452432]
[1733373583350,0.00104459,102740.0,102730.0,0.25592309]
[1733373583574,0.00104459,102740.0,102730.0,0.25420037]
[1733373583806,0.00104459,102740.0,102730.0,0.29313737]
[1733373584675,0.00104459,102740.0,102730.0,0.37523737]
[1733373592678,0.00104459,102740.0,102730.0,0.29313737]
[1733373592889,0.01118999,102740.0,102730.0,0.25420037]
[1733373593311,0.01118999,102740.0,102730.0,0.45420037]
[1733373593986,0.01118999,102740.0,102730.0,0.49313737]
[1733373594195,0.14964558,102760.0,102740.0,0.15452432]
[1733373594403,14.88904823,102770.0,102740.0,0.25592298]
[1733373594873,14.88904423,102770.0,102740.0,0.25592298]
[1733373595111,14.69442323,102770.0,102740.0,0.25592298]
[1733373595362,14.88904723,102770.0,102740.0,0.25592298]
[1733373596956,14.69442323,102770.0,102740.0,0.25592298]
[1733373597398,0.00896621,102760.0,102740.0,0.25592298]
[1733373597620,14.88904723,102770.0,102740.0,0.25592298]
[1733373598058,14.87104722,102770.0,102740.0,0.25592298]
[1733373598500,14.87104722,102770.0,102740.0,0.25354184]
[1733373599122,0.00897266,102760.0,102740.0,0.25354184]
[1733373599497,14.67642322,102770.0,102740.0,0.25354184]
[1733373599697,14.87104722,102770.0,102740.0,0.25354184]
[1733373599923,0.00897906,102760.0,102740.0,0.25354184]
[1733373600123,14.67642322,102770.0,102740.0,0.25354184]
[1733373600124,14.67642322,102770.0,102740.0,0.15285184]
[1733373600349,14.48180222,102770.0,102740.0,0.15285184]
[1733373600705,0.00897938,102760.0,102740.0,0.15285184]
[1733373601898,0.00897938,102760.0,102750.0,0.15112923]
[1733373602111,14.21128322,102770.0,102750.0,0.15285184]
[1733373603711,14.21128322,102770.0,102750.0,0.23070584]
[1733373603920,14.21128322,102770.0,102750.0,0.15285184]
[1733373604791,14.21128322,102770.0,102750.0,0.19178084]
[1733373604993,14.21128322,102770.0,102750.0,0.15285184]
[1733373605544,14.21128322,102770.0,102750.0,0.15112923]
[1733373606126,14.21128322,102770.0,102750.0,0.15285168]
[1733373606338,14.21128322,102770.0,102750.0,0.18204768]
[1733373607709,14.21128322,102770.0,102750.0,0.15285168]
[1733373609825,14.21215092,102770.0,102750.0,0.15285168]
[1733373610900,1.5,102760.0,102750.0,0.15285168]
[1733373611605,1.5,102760.0,102750.0,0.14135168]
[1733373611827,1.5,102760.0,102750.0,0.34135168]
[1733373612046,1.5,102760.0,102750.0,0.33962923]
[1733373612478,1.5,102760.0,102750.0,0.53962923]
[1733373613365,14.21215092,102770.0,102750.0,0.53962923]
[1733373614420,1.5,102760.0,102750.0,0.41597828]
[1733373617203,1.5,102760.0,102750.0,0.31630223]
[1733373617419,14.48337192,102770.0,102750.0,0.31630223]
[1733373617900,14.67798992,102770.0,102750.0,0.31630223]
[1733373618144,0.194628,102760.0,102750.0,0.31630223]
[1733373618377,14.48336892,102770.0,102750.0,0.31630223]
[1733373618629,14.67798792,102770.0,102750.0,0.31630223]
[1733373619075,14.48336892,102770.0,102750.0,0.31630223]
[1733373619303,14.67798792,102770.0,102750.0,0.31630223]
[1733373619996,14.68814496,102770.0,102750.0,0.31630223]
[1733373620247,14.88276696,102770.0,102750.0,0.31630223]
[1733373620486,14.68814496,102770.0,102750.0,0.31630223]
[1733373620920,14.68814496,102770.0,102750.0,0.51630223]
[1733373621145,14.88276696,102770.0,102750.0,0.51630223]
[1733373622261,14.68814496,102770.0,102750.0,0.51803743]
[1733373622488,14.72794985,102770.0,102750.0,0.51803743]
[1733373622705,0.42390405,102760.0,102750.0,0.51803743]
[1733373622925,0.45135829,102760.0,102750.0,0.51803743]
[1733373623154,0.42390405,102760.0,102750.0,0.51803743]
[1733373626285,0.44690405,102760.0,102750.0,0.50741361]
[1733373626495,0.47128374,102760.0,102750.0,0.50741361]
[1733373626794,0.44690405,102760.0,102750.0,0.50741361]
[1733373628791,0.023,102760.0,102750.0,0.50741361]
[1733373630189,0.217628,102760.0,102750.0,0.50741361]
[1733373631510,0.300628,102760.0,102750.0,0.50741361]
[1733373631729,0.217628,102760.0,102750.0,0.50741361]
[1733373632826,0.31554722,102760.0,102750.0,0.50741361]
[1733373633102,0.31730405,102760.0,102750.0,0.50741361]
[1733373633327,0.33168808,102760.0,102750.0,0.50741361]
[1733373634471,0.33255568,102760.0,102750.0,0.50741361]
[1733373635942,0.45925568,102760.0,102750.0,0.50741361]
[1733373636168,0.44487165,102760.0,102750.0,0.50741361]
[1733373636385,0.4509514,102760.0,102750.0,0.50741361]
[1733373636600,0.5132907,102760.0,102750.0,0.50741361]
[1733373637053,0.51327628,102760.0,102750.0,0.50741361]
[1733373637261,0.46592007,102760.0,102750.0,0.50741361]
[1733373637489,0.45984034,102760.0,102750.0,0.50741361]
[1733373637904,0.44487165,102760.0,102750.0,0.50741361]
[1733373638161,0.44487165,102760.0,102750.0,0.50741356]
[1733373638591,0.59487165,102760.0,102750.0,0.50741356]
[1733373639032,0.61448017,102760.0,102750.0,0.50741356]
[1733373639703,0.63552851,102760.0,102750.0,0.50741356]
[1733373639933,0.61448017,102760.0,102750.0,0.50741356]
[1733373642923,0.6205598,102760.0,102750.0,0.50741356]
[1733373643377,0.71448017,102760.0,102750.0,0.42877447]
[1733373643576,0.271647,102750.0,102740.0,0.0017354]
[1733373643796,0.71105943,102750.0,102740.0,0.0017354]
[1733373644034,0.72019998,102750.0,102740.0,0.0017354]
[1733373644473,0.194666,102740.0,102730.0,0.0016956]
[1733373644699,0.29434205,102740.0,102730.0,0.00187239]
[1733373645158,0.32179629,102740.0,102730.0,0.00187239]
[1733373645392,0.66611898,102740.0,102730.0,0.00187239]
[1733373645855,0.61516127,102740.0,102730.0,0.00187239]
[1733373647621,0.61516127,102740.0,102730.0,0.00017679]
[1733373647844,0.194685,102730.0,102670.0,0.029219]
[1733373648037,0.194723,102710.0,102680.0,0.10139943]
[1733373648718,0.19644638,102710.0,102680.0,0.10139943]
[1733373649640,0.39118038,102710.0,102680.0,0.10139943]
[1733373649923,0.194747,102700.0,102680.0,0.09967605]
[1733373650152,0.389501,102700.0,102680.0,0.09967605]
[1733373650777,0.194747,102700.0,102680.0,0.18217605]
[1733373650987,0.389501,102700.0,102680.0,0.18217605]
[1733373651225,0.389501,102700.0,102680.0,0.10026618]
[1733373652075,0.194747,102700.0,102680.0,0.10026618]
[1733373653237,0.39122538,102700.0,102680.0,0.00059013]
[1733373653462,0.584261,102700.0,102680.0,0.00059013]
[1733373654328,0.389502,102700.0,102680.0,0.00059013]
[1733373654544,0.194747,102700.0,102680.0,0.00059013]
[1733373654757,0.39122538,102700.0,102680.0,0.00059013]
[1733373654962,0.194747,102700.0,102680.0,0.00059013]
[1733373655328,0.38949,102700.0,102680.0,0.00059013]
[1733373655531,0.194743,102700.0,102680.0,0.00059013]
[1733373655726,1.5,102690.0,102680.0,0.00059013]
[1733373656663,0.09967605,102730.0,102680.0,0.22406618]
[1733373656877,0.194686,102730.0,102700.0,0.074911]
[1733373657035,0.194686,102730.0,102700.0,0.17631018]
[1733373657238,1.5,102720.0,102700.0,0.17631018]
[1733373657488,1.5,102720.0,102700.0,0.14709918]
[1733373657835,0.1955454,102740.0,102710.0,0.17659918]
[1733373658040,0.19726878,102740.0,102710.0,0.17659918]
[1733373658243,1.5,102720.0,102710.0,0.20580718]
[1733373659124,1.5,102720.0,102710.0,0.17659918]
[1733373660665,1.5,102720.0,102710.0,0.20580718]
[1733373661119,1.5,102720.0,102710.0,0.17659918]
[1733373661565,1.5,102720.0,102710.0,0.20580718]
[1733373662010,1.5,102720.0,102710.0,0.17659918]
[1733373664474,0.1290684,102740.0,102710.0,0.2]
[1733373664701,0.194717,102720.0,102710.0,0.21]
[1733373664922,0.19644038,102720.0,102710.0,0.21]
[1733373667186,0.00172338,102720.0,102710.0,0.21]
[1733373667432,0.194704,102720.0,102710.0,0.21]
[1733373668766,0.19642738,102720.0,102710.0,0.21]
[1733373669445,0.19642738,102720.0,102710.0,0.2117356]
[1733373669897,0.29610343,102720.0,102710.0,0.2117356]
[1733373670118,0.45615962,102720.0,102710.0,0.2117356]
[1733373671208,0.50357932,102720.0,102710.0,0.2117356]
[1733373671872,0.023,102720.0,102710.0,0.2117356]
[1733373672089,0.023,102720.0,102710.0,0.2217356]
[1733373672304,0.02472338,102720.0,102710.0,0.2217356]
[1733373672785,0.023,102720.0,102710.0,0.2217356]
[1733373673008,0.023,102720.0,102710.0,0.3049356]
[1733373673652,0.16188314,102730.0,102710.0,0.3049356]
[1733373673863,0.15172338,102730.0,102710.0,0.3049356]
[1733373674097,0.34640838,102730.0,102710.0,0.2217356]
[1733373674316,0.425985,102730.0,102710.0,0.2217356]
[1733373674543,0.2313,102730.0,102710.0,0.2217356]
[1733373674936,0.425985,102730.0,102710.0,0.2217356]
[1733373675569,0.2313,102730.0,102710.0,0.2217356]
[1733373676020,0.425986,102730.0,102710.0,0.2217356]
[1733373676246,0.2313,102730.0,102710.0,0.2217356]
[1733373676932,0.15,102730.0,102710.0,0.32141165]
[1733373677153,0.15,102730.0,102710.0,0.47371965]
[1733373677393,1.5,102720.0,102710.0,0.47371965]
[1733373680052,1.5,102720.0,102710.0,0.44451165]
[1733373680272,0.2252,102730.0,102710.0,0.2217356]
[1733373681214,0.00172338,102720.0,102710.0,0.2217356]
[1733373681432,0.614581,102730.0,102710.0,0.2217356]
[1733373681654,0.00172338,102720.0,102710.0,0.2217356]
[1733373681871,0.19642738,102720.0,102710.0,0.2217356]
[1733373682076,0.22790695,102720.0,102710.0,0.2217356]
[1733373682283,0.22618357,102720.0,102710.0,0.2217356]
[1733373682951,0.36956105,102730.0,102710.0,0.2217356]
[1733373683184,0.4816444,102740.0,102710.0,0.2217356]
[1733373683651,0.00172338,102730.0,102710.0,0.2217356]
[1733373683868,0.19640838,102730.0,102710.0,0.2217356]